Cogmind - Beta 15 @@@ ROGUE MODE // 2025.08.08 @ 19:51:47 Player: StaticNoob Result: Destroyed by CI-CL0(j) with Overtuned Pulse Rifle Performance ------------- Evolutions (0) 0 Regions Visited (3) 600 Robots Destroyed (36) 180 Value Destroyed (604) 604 Prototype IDs (4) 80 Alien Tech Used (0) 0 Bonus (800) 800 TOTAL SCORE: 2264 Bonus ------- Registered with UFD 300 Met Optimus in HQ 500 Cogmind --------- Core Integrity 0/250 Matter 300/300 Energy 240/240 System Corruption 0% Temperature Cool (37) Movement Walking (190) Ox1 Location -8/Scraptown Parts ------- > --- POWER (1) -------- Nuclear Core > --- PROPULSION (2) --- Improved Carbon-fiber Leg Improved Carbon-fiber Leg > --- UTILITY (2) ------ Large Storage Unit Seismic Detector > --- WEAPON (2) ------- Junk Cannon > --- INVENTORY (15) --- Ion Engine Improved Aluminum Leg Overtuned Titanium Leg Visual Processing Unit Advanced Signal Interpreter Advanced Terrain Scanner Improved Targeting Computer Hardlight Generator A0-MCA's Component Scanner EM Pulse Cannon Rocket Launcher Rocket Launcher CPS Tube (2) Peak State ------------ > --- POWER ------------ Nuclear Core > --- PROPULSION ------- Improved Carbon-fiber Leg Improved Carbon-fiber Leg > --- UTILITY ---------- Large Storage Unit Seismic Detector > --- WEAPON ----------- Junk Cannon > --- INVENTORY -------- Ion Engine Improved Aluminum Leg Overtuned Titanium Leg Visual Processing Unit Advanced Signal Interpreter Advanced Terrain Scanner Improved Targeting Computer Hardlight Generator A0-MCA's Component Scanner EM Pulse Cannon Rocket Launcher Rocket Launcher CPS Tube [Rating: 29] Favorites ----------- Power Ion Engine Engine Ion Engine Power Core Nuclear Core Propulsion Light Treads Treads Light Treads Leg Improved Carbon-fiber Leg Hover Unit Improved Hover Unit Utility Seismic Detector Device Seismic Detector Storage Large Storage Unit Weapon Heavy Assault Rifle Energy Gun Medium Laser Energy Cannon Subdweller Beam Cannon Ballistic Gun Heavy Assault Rifle Ballistic Cannon Advanced Assault Cannon Launcher Rocket Launcher Special Weapon Junk Cannon Build | -11 -10 -10 -8 ------- Run | Yrd Mat Sub Scr Slots Evolved . | . . . . Power . | . . . . Propulsion . | . . . . Utility . | . . . . Weapon . | . . . . Parts Attached 27 | 7 6 3 11 Power 3 | 1 . 1 1 Engine 2 | 1 . 1 . Core 1 | . . . 1 Reactor . | . . . . Propulsion 7 | 2 . . 5 Treads 4 | 2 . . 2 Leg 2 | . . . 2 Wheel . | . . . . Hover 1 | . . . 1 Flight . | . . . . Utility 5 | 2 2 . 1 Device 2 | 1 1 . . Storage 3 | 1 1 . 1 Processor . | . . . . Hackware . | . . . . Protection . | . . . . Artifact . | . . . . Weapon 12 | 2 4 2 4 Energy Gun 2 | 1 1 . . Energy Cannon 1 | . . 1 . Ballistic Gun 5 | 1 2 1 1 Ballistic Cannon 2 | . . . 2 Launcher 1 | . 1 . . Special Weapon 1 | . . . 1 Impact Weapon . | . . . . Slashing Weapon . | . . . . Piercing Weapon . | . . . . Special Melee Weapon . | . . . . Unidentified Prototypes 1 | . . . 1 Parts Lost 5 | . . 5 . Power 1 | . . 1 . Propulsion 2 | . . 2 . Utility . | . . . . Weapon 2 | . . 2 . Highest Loss Streak 3 | . . 3 . To Critical Strikes . | . . . . Average Backups 12 | 1 9 13 13 Power . | . 1 1 1 Propulsion . | . . . . Utility 5 | . 2 5 6 Weapon 5 | . 5 7 5 Tool/Special . | . . . . Unused Backups 29 | . 3 1 25 Power 1 | . . . 1 Propulsion 4 | . . . 4 Utility 12 | . . . 12 Weapon 11 | . 3 1 7 Tool/Special 1 | . . . 1 Average Slot Usage (%) 87 | . 100 78 85 Engine 8 | . 14 13 5 Core 4 | . . . 6 Treads 9 | . 28 8 3 Leg 5 | . . . 8 Hover 5 | . . . 8 Device 14 | . 14 14 14 Storage 14 | . 14 14 14 Energy Cannon 4 | . . 2 5 Ballistic Gun 14 | . 23 24 9 Ballistic Cannon 2 | . . . 3 Special Weapon 3 | . . . 4 Peak Build Rating 29 | 7 10 11 29 Average Rating 14 | 4 8 9 18 On Entrance 6 | . 7 10 10 Naked Turns . | . . . . Heaviest Build 42 | 14 33 37 42 Greatest Support 46 | 40 40 40 46 Greatest Overweight (x) 12 | 1 . 12 12 Average Overweight (x) 1 | . . 3 2 Largest Inventory Capacity 15 | 8 15 15 15 Average Capacity 14 | 7 11 15 15 Most Carried 15 | 3 13 15 15 Average Carried 13 | 1 9 14 14 Final Capacity 15 | 8 15 15 15 Final Carried 15 | 3 13 15 13 Class Distribution -------------------- 100% | Mutant Dominant Class ---------------- Mutant | -10/Materials Mutant | -10/Subcaves Mutant | -8/Scraptown Resources | -11 -10 -10 -8 ----------- Run | Yrd Mat Sub Scr Matter Collected 950 | 255 295 153 247 Remotely 124 | . 124 . . Salvage Created 832 | 127 546 159 . Parts 80 | 8 55 17 . Haulers Intercepted . | . . . . Recyclers Shooed 1 | . 1 . . Parts Field Recycled . | . . . . Retrieved Matter . | . . . . Parts Self-Destructed 6 | . . 6 . Prevented . | . . . . Kills | -11 -10 -10 -8 ------- Run | Yrd Mat Sub Scr Combat Hostiles Destroyed 26 | . 17 9 . Guns 18 | . 17 1 . Cannons 2 | . . 2 . AOE 6 | . . 6 . Classes Destroyed 8 | 2 5 1 . Builder 2 | . 2 . . Tunneler 2 | 2 . . . Recycler 1 | 1 . . . Operator 2 | . 2 . . Watcher 3 | . 3 . . Swarmer 17 | . 11 6 . Grunt 6 | . 6 . . Subdweller 3 | . . 3 . Best Kill Streak 6 | 3 6 6 . Combat Bots Only 6 | . 6 6 . Max Kills in Single Turn 2 | 1 1 2 . Gunslinging . | . . . . Exploded 2 | . . 2 . Melee . | . . . . Uniques/NPCs Destroyed . | . . . . Combat | -11 -10 -10 -8 -------- Run | Yrd Mat Sub Scr Hostile Shots Fired 123 | . 74 45 4 Missed 34 | . 22 12 . Hits 89 | . 52 33 4 Projectile 89 | . 52 33 4 Critical Strikes 3 | . 1 1 1 Damage Taken 1137 | . 457 565 115 Core 255 | . 83 147 25 Absorbed by Shields . | . . . . Core Remaining (%) 100 | 100 . . . Volleys Fired 94 | 6 68 20 . Largest 2 | 2 2 2 . Hottest 103 | 60 70 103 . Shots Fired 170 | 11 132 27 . Gun 157 | 11 130 16 . Cannon 4 | . . 4 . Launcher 9 | . 2 7 . Special . | . . . . Kinetic 116 | 6 94 16 . Thermal 45 | 5 36 4 . Explosive 9 | . 2 7 . Electromagnetic . | . . . . Robot Hit Streak 8 | 4 8 5 . Robot Miss Streak 3 | 2 3 3 . Penetration Max . | . . . . Secondary Targets 1 | . 1 . . Max Gunslinging Chain 1 | . 1 . . Shots Hit Robots 92 | 7 70 15 . Core Hits 44 | 4 31 9 . Critical Kills . | . . . . Critical Parts Destroyed . | . . . . Critical Strikes 1 | . 1 . . Burn 1 | . 1 . . Melee Attacks . | . . . . Impact . | . . . . Slashing . | . . . . Piercing . | . . . . Sneak Attacks . | . . . . Combat Hostiles . | . . . . Follow-up Attacks . | . . . . Damage Inflicted 1716 | 82 1043 591 . Guns 1278 | 82 1041 155 . Cannons 106 | . . 106 . Explosions 330 | . . 330 . Melee . | . . . . Ramming 2 | . 2 . . Kinetic 1015 | 38 822 155 . Thermal 369 | 44 219 106 . Explosive 330 | . . 330 . Electromagnetic . | . . . . Impact . | . . . . Slashing . | . . . . Piercing . | . . . . Highest Corruption . | . . . . Average Corruption . | . . . . Corruption Purged . | . . . . Corruption Blocked . | . . . . Overload Shots . | . . . . Overflow Damage 36 | . . 36 . Projectiles . | . . . . Explosions 36 | . . 36 . Melee . | . . . . Knockbacks . | . . . . Impact . | . . . . Kinetic . | . . . . Secondary . | . . . . Self-Inflicted Damage 21 | . . 21 . Shots 1 | . . 1 . Rammed 1 | . 1 . . Targets Rammed 1 | . 1 . . Kicked . | . . . . Crushed . | . . . . Highest Temperature 72 | . 72 . 8 Average Temperature 31 | . 31 . 5 Received Heat Transfer 271 | . 90 108 73 Siege Activations . | . . . . Martial Activations . | . . . . Shielding Activations . | . . . . Robots Disrupted . | . . . . Combat Hostiles . | . . . . Robots Corrupted . | . . . . Combat Hostiles . | . . . . Parts Fried . | . . . . Impact Corruptions . | . . . . Robots Melted . | . . . . Combat Hostiles . | . . . . Parts Melted . | . . . . Heat Transferred 880 | 100 632 148 . Parts Sabotaged . | . . . . Parts Stolen . | . . . . Parts Stripped . | . . . . Power Chain Reactions . | . . . . Alert | -11 -10 -10 -8 ------- Run | Yrd Mat Sub Scr Maximum Alert Level . | . . . . Low Security (%) 100 | 100 100 . . Level 1 . | . . . . Level 2 . | . . . . Level 3 . | . . . . Level 4 . | . . . . Level 5 . | . . . . High Security . | . . . . Max Security . | . . . . Peak Influence 187 | 10 187 . . Initial . | . . . . Average 71 | 1 76 . . Influence Increases 657 | 15 502 140 . Destroy 0b10 Robot/C 460 | . 340 120 . Destroy 0b10 Robot/NC 50 | 15 35 . . Destroy Leader 86 | . 66 20 . Successful Hack 28 | . 28 . . Destroy Structure 18 | . 18 . . Lose Combat Pursuer 15 | . 15 . . Influence Decreases 657 | 15 476 166 . Entered New Map 14 | . . 14 . Time Decay 633 | 15 476 142 . Lost Part 10 | . . 10 . Squads Dispatched 3 | . 3 . . Investigation . | . . . . Extermination . | . . . . Reinforcement 3 | . 3 . . Assault . | . . . . Garrison . | . . . . Intercept . | . . . . Searches Triggered . | . . . . Construction Impeded . | . . . . Haulers Reinforced . | . . . . Active Scanning Responses . | . . . . Cargo Convoy Interrupts . | . . . . Stealth | -11 -10 -10 -8 --------- Run | Yrd Mat Sub Scr Distress Signals 1 | . 1 . . Communications Jammed . | . . . . Distress Signals . | . . . . Times Spotted 40 | . 27 10 3 Peak Tracking Total 5 | . 5 3 2 Tactical Retreats 1 | . 1 . . Traps | -11 -10 -10 -8 ------- Run | Yrd Mat Sub Scr Traps Triggered . | . . . . Indirectly . | . . . . Trap Hack Attempts . | . . . . Triggered . | . . . . Disarmed . | . . . . Reprogrammed . | . . . . Reused . | . . . . Traps Extracted . | . . . . Installed . | . . . . Triggered . | . . . . Machines | -11 -10 -10 -8 ---------- Run | Yrd Mat Sub Scr Machines Disabled . | . . . . Max in Single Turn . | . . . . Machines Repaired . | . . . . Machines Dismantled . | . . . . Machines Sabotaged . | . . . . Overloaded Fab Kills . | . . . . Hacking | -11 -10 -10 -8 --------- Run | Yrd Mat Sub Scr Machines Accessed 10 | . 6 . 4 Terminals 5 | . 5 . . Fabricators . | . . . . Repair Stations . | . . . . Recycling Units 1 | . 1 . . Scanalyzers . | . . . . Garrison Access . | . . . . Total Hacks 36 | . 17 . 19 Successful 30 | . 11 . 19 Failed 5 | . 5 . . Catastrophic 1 | . 1 . . Database Lockouts 1 | . 1 . . Manual 15 | . 15 . . Terminals 16 | . 16 . . Fabricators . | . . . . Repair Stations . | . . . . Recycling Units 1 | . 1 . . Scanalyzers . | . . . . Garrison Access . | . . . . Terminal Hacks 23 | . 4 . 19 Record 12 | . . . 12 Robot Analysis 9 | . 2 . 7 Prototype ID Bank 1 | . 1 . . Locate Traps 1 | . 1 . . Fabricator Hacks . | . . . . Repair Station Hacks . | . . . . Recycling Unit Hacks 1 | . 1 . . Retrieve Components 1 | . 1 . . Scanalyzer . | . . . . Garrison Access Hacks . | . . . . Unauthorized Hacks 6 | . 6 . . Terminals 6 | . 6 . . Botnet 1 | . 1 . . Operators 1 | . 1 . . Skim 4 | . 4 . . Fabricators . | . . . . Repair Stations . | . . . . Recycling Units . | . . . . Scanalyzers . | . . . . Garrison Access . | . . . . Data Cores Recovered . | . . . . Used . | . . . . Hacking Detections 5 | . 5 . . Full Trace Events 1 | . 1 . . Feedback Events . | . . . . Feedback Blocked . | . . . . Robot Schematics Acquired . | . . . . Robots Built . | . . . . Authchips . | . . . . Time . | . . . . Total Robot Build Rating . | . . . . Part Schematics Acquired . | . . . . Parts Built . | . . . . Authchips . | . . . . Time . | . . . . Total Part Build Rating . | . . . . Parts Repaired . | . . . . Time . | . . . . Parts Recycled . | . . . . Recycled Matter . | . . . . Retrieved Matter . | . . . . Retrieved Components 2 | . 2 . . Parts Scanalyzed . | . . . . Part Schematics Acquired . | . . . . Parts Damaged . | . . . . Bothacking | -11 -10 -10 -8 ------------ Run | Yrd Mat Sub Scr Used RIF Installer . | . . . . Robots Hacked . | . . . . Non-combat . | . . . . Combat . | . . . . Robot Hacks Applied . | . . . . Relay Couplers Released . | . . . . Fabnet Peak Effective % . | . . . . Robots Rewired . | . . . . Allies Hacked . | . . . . Hacks Repelled . | . . . . Allies | -11 -10 -10 -8 -------- Run | Yrd Mat Sub Scr Total Allies . | . . . . Largest Group . | . . . . Highest-Rated Group . | . . . . Highest-Rated Ally . | . . . . Total Orders . | . . . . Ally Attacks . | . . . . Total Damage . | . . . . Kills . | . . . . Allies Corrupted . | . . . . Allies Melted 1 | . . . 1 Intel | -11 -10 -10 -8 ------- Run | Yrd Mat Sub Scr Active Infowar (turns) 6174 | 9 1296 960 3909 Seismic 6174 | 9 1296 960 3909 Robot Analysis Total 9 | . 2 . 7 Derelict Logs Recovered 5 | . . 1 4 Drone Launches . | . . . . Drone Recoveries . | . . . . Exploration | -11 -10 -10 -8 ------------- Run | Yrd Mat Sub Scr Turns Passed 6259 | 80 1310 960 3909 Spaces Moved 2550 | 34 674 292 1550 Core 98 | 4 . 80 14 Treads 1226 | 30 674 212 310 Legs 650 | . . . 650 Wheels . | . . . . Hover 576 | . . . 576 Flight . | . . . . Fastest Speed 50 | 50 160 160 160 Average Speed 230 | 150 160 307 249 Slowest Speed 650 | 160 160 650 650 Overloaded Moves . | . . . . Propulsion Burnouts . | . . . . Robots Hopped . | . . . . Potential Cave-ins . | . . . . Cave-ins Triggered . | . . . . Exploration Rate (%) 52 | 4 94 22 88 Regions Visited 3 Branch Regions 2 Pre-discovered Areas . | . . . . Known Exits Taken . | . . . . Unknown Exits Taken 3 | 1 1 1 . Scrap Searched 7 | . . . 7 Spaces Dug 21 | . 21 . . Terrain Destroyed 59 | . 21 38 . Melee . | . . . . Projectile . | . . . . AOE 59 | . 21 38 . Terrain Rammed . | . . . . Walls Destroyed . | . . . . Machines Disabled . | . . . . Actions | -11 -10 -10 -8 --------- Run | Yrd Mat Sub Scr Total 2763 | 49 774 333 1607 Wait 16 | . 1 10 5 Move 2547 | 33 673 291 1550 Hop . | . . . . Pick Up 39 | 3 14 5 17 Fast Attach 16 | 7 1 1 7 Attach 6 | . 1 2 3 Detach . | . . . . Swap 11 | . 8 2 1 Drop 33 | . 7 2 24 Fire 94 | 6 68 20 . Melee . | . . . . Ram . | . . . . Kick . | . . . . Crush 1 | . 1 . . Escape Stasis . | . . . . Rewire . | . . . . Trap . | . . . . Miscellaneous . | . . . . Route ------- -11/Scrapyard -10/Materials (discovered 5 exits: [*Mat x3] / [*Min] / [*Sub]) -10/Subcaves (discovered 2 exits: [*Mat] / *Scr) -8/Scraptown (discovered 1 exit: [*Fac]) History --------- Turn | Location | Event 13 | -11/Scrapyard | Discovered new exit (range 16) 81 | -11/Scrapyard | Entered Materials 300 | -10/Materials | Build established: Mutant 343 | -10/Materials | Central database locked down 386 | -10/Materials | Discovered new exit (range 9) 791 | -10/Materials | Discovered new exit (range 13) 875 | -10/Materials | Discovered new exit (range 13) 915 | -10/Materials | Discovered new exit (range 15) 1081 | -10/Materials | Discovered new exit (range 4) 1391 | -10/Materials | Entered Subcaves 1392 | -10/Subcaves | Approached by a straggling Scientist 1418 | -10/Subcaves | Shifting Twisted Machinery released Sub. Beam Cannon 1463 | -10/Subcaves | Shifting Twisted Machinery released Scrap Shield 1503 | -10/Subcaves | Scientist uncovered a shortcut to Scraptown 1591 | -10/Subcaves | Discovered new exit (range 13) 1608 | -10/Subcaves | Learned Materials machine intel 1885 | -10/Subcaves | Core integrity fell below 50% 2168 | -10/Subcaves | Core integrity fell below 20% 2192 | -10/Subcaves | Lost 3 parts (1p2w) 2351 | -10/Subcaves | Entered Scraptown 2736 | -8/Scraptown | Visited Cyclists 2822 | -8/Scraptown | Visited Cave Peace 3045 | -8/Scraptown | Visited UFD Registry 3135 | -8/Scraptown | Visited The Evicted 3171 | -8/Scraptown | Visited Awakened 3225 | -8/Scraptown | Visited Fellowship of the Rings 3254 | -8/Scraptown | Visited Symbiants 3495 | -8/Scraptown | Registered with UFD as "Rustcutter" 3621 | -8/Scraptown | Entered Cyclist Reading Room 3841 | -8/Scraptown | Scanned Subdweller tech in exchange for log data 3852 | -8/Scraptown | Learned Factory stockpile data 3855 | -8/Scraptown | Learned Factory terminal intel 3859 | -8/Scraptown | Learned location of 1 exit from Lower Caves 3909 | -8/Scraptown | Discovered new exit (range 11) 4863 | -8/Scraptown | Visited Junk Cannon Lab 4893 | -8/Scraptown | Found Prototype Special Weapon 4893 | -8/Scraptown | Identified Junk Cannon 4947 | -8/Scraptown | Visited Science Guys 4998 | -8/Scraptown | Visited Junk Repository 5143 | -8/Scraptown | Visited Junk Repository 5214 | -8/Scraptown | Visited DA-N13 Charitable Foundation 5221 | -8/Scraptown | Found DCF Scrap (26 items) 5346 | -8/Scraptown | Visited Analyses Database 5416 | -8/Scraptown | Delivered Scrap Shield to a Scientist 5583 | -8/Scraptown | Visited Curators Association 5623 | -8/Scraptown | Visited A0-MCA Data Center 5634 | -8/Scraptown | Given a C+ rating by A0-MCA 5640 | -8/Scraptown | Found A0-MCA's Component Scanner 5677 | -8/Scraptown | Visited Scrapoid Research Area 6145 | -8/Scraptown | Met Optimus 6145 | -8/Scraptown | Accepted into 0bPrime 6232 | -8/Scraptown | Civil war broke out across Scraptown 6260 | -8/Scraptown | Destroyed by CI-CL0(j) with Overtuned Pulse Rifle Last Messages --------------- now. Get out of here and do your job, we'll deal with this." 06234_ Penetrated by Slug. 06234_ Slug penetrates 41-9EK(E). 06234_ Slug penetrates Wall. 06236_ Optimus: "No holds barred, if they're hostile, they are an enemy of the people and we must shoot to kill. Collateral damage is to be expected!" 06237_ Slug penetrates WH-VLY(l). 06237_ Slug penetrates Wall. 06239_ WH-VLY(l) destroyed. 06251_ F9-OEZ(E) suffers critical hit (Burn). 06251_ F9-OEZ(E) critical meltdown. 06254_ Acquired 10 matter. 06254_ SL-622(E) suffers critical hit (Burn). 06256_ SL-622(E) destroyed. 06260_ Critical hit (Burn: +50). [Achievement: I Was Wrong!] Map ----- +----------------------------------------------------+ | | | | | | | | | | | | | | | | | | | ?????????????????????????????????????????????????? | | ?????????????????????????????????????????????????? | | ?????????????????????????????????????????????????? | | ?????????????????????????????????????????????????? | | ?????????????????????????????????????????????????? | | ?????????????????????????????????????????????????? | | ?????????????????????????????????????????????????? | | ?????????????????????????????????????????????????? | | ?????????????????????????????????????????????????? | | ?????????????????????????????????????????????????? | | ?????????????????????????????????????????????????? | | ?????????????????????????????????????????????????? | | ??????????????????###????????????????????????????? | | ?????????????????##"#????????????????????????????? | | ???????????????### ##??????? #??????????????????? | | ??????" ##!!"###; [###### ##?????????????????? | | ????? j ===%!@ #?????????????????? | | ?????? j !%! #?????????????????? | | ???????????###### ###########?????????????????? | | ????????????????## ##???????????????????????????? | | #####????????????# #????????????????????????????? | | """"""#??????????# #????????????????????????????? | | X """#??????????# #????????????????????????????? | | """"#?????????## #????????????????????????????? | | "|""#?????????#" #????????????????????????????? | | """"#?????????## # ? ?????????????????????????? | | ""############ # ? ????????????????????????? | | &## # #] # # ? ????????????????????????? | | "" "&## # # ]# # " ????????????????????????? | | "" "&## # # # # ???????????????????????? | | "## " # ????????????????????????? | | ## " #"""?????????????????????????? | | ########### ##### ## #?????????????????????????? | | ########### ##### ## #########?????????????????? | | """"""""""" """""/%"" "## ! #?????????????????? | | = "## #?????????????????? | | "## ####?????????????????? | | "## ][#?????????????????? | | "## !#?????????????????? | | ! #?????????????????? | | """""""""""""""""" "## ####?????????????????? | +----------------------------------------------------+ Best States ------------- Heat Dissipation 25 Energy Generation 14 Energy Capacity 250 Matter Stores 300 Matter Capacity 300 Sight Range 16 Terrain Scan Density 10 Evasion (%) 40 Recoil Reduction 2 Item Schematics ----------------- None Robot Schematics ------------------ None Fabricated ------------ Nothing Repaired ---------- Nothing Alien Tech Used ----------------- None Achievements -------------- I Was Wrong! Challenges ------------ None Game ------ Seed FieldDispersionInverter Manual? 0 Play Time 00:25:08 Cumulative 168.0 hours Start 2025.08.08 @ 19:28:24 End 2025.08.08 @ 19:51:47 Sessions 1 Manual Loads 0 Difficulty Rogue Special Mode None Game No. 143 Rogue 143 Adventurer 0 Explorer 0 Win Type - Total 4 Types 2/0/1/1/0/0/0/0/0/0 Lore% 75 Gallery% 68 Achievement% 62 Wizard Run 0 Options --------- Layout 1 ASCII 0 Keyboard 0 Movement Mouse Keybinds 0 Fullscreen 1 Font 24/Smallcaps Map View 50x35 Zoom Use 0% Tactical HUD 1 Map Filters NONE Filters NONE Steam 1 RUN: 6e12ee94-4ab3-410c-a5f3-cb6995762aa0